[Event "Titled Tuesday Blitz January 25 2022"]
[White "Deac, Bogdan-Daniel"]
[Black "Babazada, Khazar"]
[WhiteFideId "1226380"]
[BlackFideId "13413554"]
[WhiteElo "2646"]
[BlackElo "2418"]
[Result "1-0"]
[Round "10"]
[TimeControl "180+1"]
[Date "2022.01.26"]
[WhiteClock "0:00:07"]
[BlackClock "0:00:06"]

1. d4 {[%clk 0:03:00]}  g6 {[%clk 0:03:00]} 2. g3 {[%clk 0:02:59]}  Bg7 {[%clk 0:03:00]} 3. Bg2 {[%clk 0:02:59]}  Nf6 {[%clk 0:03:01]} 4. Nf3 {[%clk 0:02:59]}  O-O {[%clk 0:03:01]} 5. O-O {[%clk 0:03:00]}  d6 {[%clk 0:03:01]} 6. b3 {[%clk 0:02:57]}  Nbd7 {[%clk 0:03:01]} 7. Bb2 {[%clk 0:02:57]}  b6 {[%clk 0:03:02]} 8. c4 {[%clk 0:02:53]}  Bb7 {[%clk 0:03:02]} 9. Nc3 {[%clk 0:02:54]}  Re8 {[%clk 0:03:01]} 10. Qc2 {[%clk 0:02:46]}  e5 {[%clk 0:03:00]} 11. Rad1 {[%clk 0:02:47]}  e4 {[%clk 0:02:59]} 12. Ng5 {[%clk 0:02:46]}  Qe7 {[%clk 0:02:59]} 13. d5 {[%clk 0:02:02]}  e3 {[%clk 0:02:54]} 14. f4 {[%clk 0:02:01]}  a5 {[%clk 0:02:50]} 15. Nb5 {[%clk 0:01:58]}  Nc5 {[%clk 0:02:49]} 16. f5 {[%clk 0:01:49]}  Rf8 {[%clk 0:02:22]} 17. Nf3 {[%clk 0:01:08]}  Ng4 {[%clk 0:01:20]} 18. Bxg7 {[%clk 0:01:06]}  Kxg7 {[%clk 0:01:21]} 19. Qc3+ {[%clk 0:01:06]}  Kg8 {[%clk 0:01:20]} 20. Qd4 {[%clk 0:01:04]}  Nf2 {[%clk 0:01:13]} 21. Rc1 {[%clk 0:00:20]}  Rac8 {[%clk 0:00:57]} 22. f6 {[%clk 0:00:19]}  Qe4 {[%clk 0:00:57]} 23. Rc3 {[%clk 0:00:13]}  Qxd4 {[%clk 0:00:53]} 24. Nfxd4 {[%clk 0:00:13]}  Rfe8 {[%clk 0:00:53]} 25. Nc2 {[%clk 0:00:09]}  Nd7 {[%clk 0:00:27]} 26. Rxe3 {[%clk 0:00:08]}  Ng4 {[%clk 0:00:26]} 27. Rxe8+ {[%clk 0:00:06]}  Rxe8 {[%clk 0:00:27]} 28. e4 {[%clk 0:00:05]}  Ngxf6 {[%clk 0:00:27]} 29. Nxc7 {[%clk 0:00:05]}  Re5 {[%clk 0:00:27]} 30. Nb5 {[%clk 0:00:04]}  Ne8 {[%clk 0:00:20]} 31. Ncd4 {[%clk 0:00:04]}  Nc5 {[%clk 0:00:20]} 32. Re1 {[%clk 0:00:04]}  f5 {[%clk 0:00:19]} 33. Nc6 {[%clk 0:00:05]}  Bxc6 {[%clk 0:00:19]} 34. dxc6 {[%clk 0:00:05]}  fxe4 {[%clk 0:00:19]} 35. c7 {[%clk 0:00:06]}  Nxc7 {[%clk 0:00:18]} 36. Nxc7 {[%clk 0:00:07]}  Nd3 {[%clk 0:00:18]} 37. Rxe4 {[%clk 0:00:06]}  Rxe4 {[%clk 0:00:16]} 38. Bxe4 {[%clk 0:00:07]}  Nc1 {[%clk 0:00:17]} 39. Bd5+ {[%clk 0:00:06]}  Kg7 {[%clk 0:00:17]} 40. Na8 {[%clk 0:00:07]}  Nxa2 {[%clk 0:00:15]} 41. Nxb6 {[%clk 0:00:08]}  Nc1 {[%clk 0:00:16]} 42. c5 {[%clk 0:00:08]}  dxc5 {[%clk 0:00:16]} 43. Bc4 {[%clk 0:00:07]}  Na2 {[%clk 0:00:17]} 44. Na4 {[%clk 0:00:07]}  Kf6 {[%clk 0:00:15]} 45. Kf2 {[%clk 0:00:07]}  Ke5 {[%clk 0:00:15]} 46. Ke3 {[%clk 0:00:07]}  Nb4 {[%clk 0:00:15]} 47. Nxc5 {[%clk 0:00:07]}  Nc2+ {[%clk 0:00:16]} 48. Kd2 {[%clk 0:00:08]}  Nd4 {[%clk 0:00:16]} 49. Ke3 {[%clk 0:00:07]}  Nc2+ {[%clk 0:00:16]} 50. Kd3 {[%clk 0:00:08]}  Ne1+ {[%clk 0:00:16]} 51. Ke2 {[%clk 0:00:08]}  Nc2 {[%clk 0:00:16]} 52. Nb7 {[%clk 0:00:08]}  Nd4+ {[%clk 0:00:16]} 53. Kf2 {[%clk 0:00:07]}  Nc6 {[%clk 0:00:14]} 54. Bb5 {[%clk 0:00:07]}  Nd4 {[%clk 0:00:15]} 55. Ba4 {[%clk 0:00:08]}  Ke4 {[%clk 0:00:09]} 56. Nxa5 {[%clk 0:00:08]}  h5 {[%clk 0:00:09]} 57. b4 {[%clk 0:00:07]}  g5 {[%clk 0:00:08]} 58. b5 {[%clk 0:00:07]}  Ne6 {[%clk 0:00:06]} 59. b6 {[%clk 0:00:07]}  Nc5 {[%clk 0:00:06]} 60. b7 {[%clk 0:00:07]} 1-0


[Site "https://www.chess.com"]

[Event "Titled Tuesday Blitz January 25 2022"]
[White "Di Nicolantonio, Lucas"]
[Black "Brodowski, Piotr"]
[WhiteFideId "680460"]
[BlackFideId "1124480"]
[WhiteElo "2381"]
[BlackElo "2422"]
[Result "0-1"]
[Round "10"]
[TimeControl "180+1"]
[Date "2022.01.26"]
[WhiteClock "0:00:06"]
[BlackClock "0:00:05"]

1. e4 {[%clk 0:03:00]}  d6 {[%clk 0:02:55]} 2. d4 {[%clk 0:03:00]}  g6 {[%clk 0:02:54]} 3. Nc3 {[%clk 0:02:58]}  Bg7 {[%clk 0:02:54]} 4. Bg5 {[%clk 0:02:58]}  Nd7 {[%clk 0:02:42]} 5. Qd2 {[%clk 0:02:54]}  c5 {[%clk 0:02:41]} 6. Nf3 {[%clk 0:02:44]}  cxd4 {[%clk 0:02:35]} 7. Nxd4 {[%clk 0:02:44]}  h6 {[%clk 0:02:35]} 8. Be3 {[%clk 0:02:42]}  Ngf6 {[%clk 0:02:33]} 9. f3 {[%clk 0:02:37]}  a6 {[%clk 0:02:31]} 10. O-O-O {[%clk 0:02:35]}  Qc7 {[%clk 0:02:27]} 11. Kb1 {[%clk 0:02:35]}  b5 {[%clk 0:02:23]} 12. Bd3 {[%clk 0:02:23]}  Bb7 {[%clk 0:02:22]} 13. Rhe1 {[%clk 0:02:23]}  Nc5 {[%clk 0:02:04]} 14. Bf1 {[%clk 0:02:16]}  b4 {[%clk 0:01:59]} 15. Nce2 {[%clk 0:02:11]}  Rb8 {[%clk 0:01:57]} 16. Nb3 {[%clk 0:01:56]}  Na4 {[%clk 0:01:35]} 17. Bd4 {[%clk 0:01:47]}  O-O {[%clk 0:01:31]} 18. g4 {[%clk 0:01:34]}  Rfc8 {[%clk 0:01:24]} 19. Rc1 {[%clk 0:01:33]}  a5 {[%clk 0:00:58]} 20. h4 {[%clk 0:01:23]}  d5 {[%clk 0:00:32]} 21. e5 {[%clk 0:01:18]}  Ne8 {[%clk 0:00:31]} 22. f4 {[%clk 0:01:07]}  Nb6 {[%clk 0:00:23]} 23. Nxa5 {[%clk 0:00:49]}  Nc4 {[%clk 0:00:23]} 24. Nxc4 {[%clk 0:00:49]}  dxc4 {[%clk 0:00:24]} 25. Qe3 {[%clk 0:00:39]}  c3 {[%clk 0:00:20]} 26. b3 {[%clk 0:00:36]}  Ra8 {[%clk 0:00:21]} 27. Rcd1 {[%clk 0:00:35]}  Rxa2 {[%clk 0:00:17]} 28. Kxa2 {[%clk 0:00:22]}  Ra8+ {[%clk 0:00:16]} 29. Kb1 {[%clk 0:00:21]}  Qa5 {[%clk 0:00:16]} 30. Bxc3 {[%clk 0:00:16]}  bxc3 {[%clk 0:00:16]} 31. Qxc3 {[%clk 0:00:15]}  Qa2+ {[%clk 0:00:16]} 32. Kc1 {[%clk 0:00:15]}  Nd6 {[%clk 0:00:17]} 33. Qb2 {[%clk 0:00:13]}  Qa7 {[%clk 0:00:16]} 34. Nd4 {[%clk 0:00:11]}  Ne4 {[%clk 0:00:15]} 35. Bg2 {[%clk 0:00:09]}  Nf2 {[%clk 0:00:11]} 36. Bxb7 {[%clk 0:00:09]}  Qxb7 {[%clk 0:00:12]} 37. Rd2 {[%clk 0:00:06]}  Nxg4 {[%clk 0:00:12]} 38. c4 {[%clk 0:00:04]}  g5 {[%clk 0:00:11]} 39. hxg5 {[%clk 0:00:04]}  hxg5 {[%clk 0:00:12]} 40. Nf5 {[%clk 0:00:04]}  Bh8 {[%clk 0:00:11]} 41. Rh1 {[%clk 0:00:04]}  Qxh1+ {[%clk 0:00:10]} 42. Rd1 {[%clk 0:00:05]}  Qb7 {[%clk 0:00:10]} 43. fxg5 {[%clk 0:00:05]}  Bxe5 {[%clk 0:00:07]} 44. Nh6+ {[%clk 0:00:04]}  Kf8 {[%clk 0:00:05]} 45. Qe2 {[%clk 0:00:04]}  Ra1+ {[%clk 0:00:05]} 46. Kd2 {[%clk 0:00:04]}  Ra2+ {[%clk 0:00:05]} 47. Kc1 {[%clk 0:00:04]}  Rxe2 {[%clk 0:00:06]} 48. Rd8+ {[%clk 0:00:05]}  Kg7 {[%clk 0:00:05]} 49. Nf5+ {[%clk 0:00:04]}  Kg6 {[%clk 0:00:05]} 50. Nh4+ {[%clk 0:00:05]}  Kxg5 {[%clk 0:00:05]} 51. Rg8+ {[%clk 0:00:06]}  Kf4 {[%clk 0:00:05]} 0-1


[Site "https://www.chess.com"]

[Event "Titled Tuesday Blitz January 25 2022"]
[White "Donchenko, Alexander"]
[Black "Siva Mahadevan"]
[WhiteFideId "24603295"]
[BlackFideId "25043153"]
[WhiteElo "2539"]
[BlackElo "2203"]
[Result "1-0"]
[Round "10"]
[TimeControl "180+1"]
[Date "2022.01.26"]
[WhiteClock "0:00:09"]
[BlackClock "0:00:02"]

1. c4 {[%clk 0:03:00]}  Nf6 {[%clk 0:02:59]} 2. g3 {[%clk 0:03:01]}  g6 {[%clk 0:03:00]} 3. Bg2 {[%clk 0:03:01]}  Bg7 {[%clk 0:03:01]} 4. Nc3 {[%clk 0:03:02]}  O-O {[%clk 0:03:01]} 5. e4 {[%clk 0:03:01]}  d6 {[%clk 0:03:01]} 6. Nge2 {[%clk 0:03:01]}  e5 {[%clk 0:03:01]} 7. d3 {[%clk 0:03:02]}  Nc6 {[%clk 0:02:59]} 8. O-O {[%clk 0:03:01]}  Nh5 {[%clk 0:02:57]} 9. Nd5 {[%clk 0:02:59]}  f5 {[%clk 0:02:56]} 10. exf5 {[%clk 0:02:59]}  Bxf5 {[%clk 0:02:57]} 11. h3 {[%clk 0:02:59]}  Be6 {[%clk 0:02:57]} 12. Be3 {[%clk 0:02:55]}  Qd7 {[%clk 0:02:57]} 13. Kh2 {[%clk 0:02:55]}  Rf7 {[%clk 0:02:56]} 14. Qd2 {[%clk 0:02:54]}  Raf8 {[%clk 0:02:56]} 15. f4 {[%clk 0:02:53]}  Kh8 {[%clk 0:02:24]} 16. Rae1 {[%clk 0:02:52]}  a6 {[%clk 0:02:13]} 17. b4 {[%clk 0:02:51]}  Nd4 {[%clk 0:02:04]} 18. Nxd4 {[%clk 0:02:29]}  exd4 {[%clk 0:02:05]} 19. Bg1 {[%clk 0:02:30]}  Re8 {[%clk 0:01:45]} 20. g4 {[%clk 0:02:14]}  Nf6 {[%clk 0:01:45]} 21. Nxf6 {[%clk 0:02:12]}  Bxf6 {[%clk 0:01:46]} 22. f5 {[%clk 0:02:03]}  gxf5 {[%clk 0:01:40]} 23. gxf5 {[%clk 0:02:03]}  Bxf5 {[%clk 0:01:16]} 24. Rxe8+ {[%clk 0:02:03]}  Qxe8 {[%clk 0:01:17]} 25. Rxf5 {[%clk 0:02:03]}  Be5+ {[%clk 0:01:17]} 26. Rxe5 {[%clk 0:02:04]}  Qxe5+ {[%clk 0:01:18]} 27. Kh1 {[%clk 0:02:04]}  c5 {[%clk 0:01:03]} 28. Bh2 {[%clk 0:01:49]}  Qe3 {[%clk 0:00:57]} 29. Qd1 {[%clk 0:01:48]}  Rf6 {[%clk 0:00:54]} 30. a3 {[%clk 0:01:22]}  b5 {[%clk 0:00:45]} 31. Bg1 {[%clk 0:01:08]}  Qf4 {[%clk 0:00:42]} 32. cxb5 {[%clk 0:01:00]}  axb5 {[%clk 0:00:43]} 33. Qh5 {[%clk 0:01:00]}  cxb4 {[%clk 0:00:34]} 34. axb4 {[%clk 0:00:58]}  Qe5 {[%clk 0:00:34]} 35. Qg4 {[%clk 0:00:52]}  Rf4 {[%clk 0:00:31]} 36. Qc8+ {[%clk 0:00:49]}  Kg7 {[%clk 0:00:31]} 37. Qd7+ {[%clk 0:00:48]}  Kg6 {[%clk 0:00:30]} 38. Qd8 {[%clk 0:00:41]}  Qe6 {[%clk 0:00:17]} 39. Qa8 {[%clk 0:00:32]}  h5 {[%clk 0:00:15]} 40. Qh8 {[%clk 0:00:29]}  Qf7 {[%clk 0:00:08]} 41. Qb8 {[%clk 0:00:19]}  Qe6 {[%clk 0:00:07]} 42. Qxb5 {[%clk 0:00:18]}  Qe2 {[%clk 0:00:07]} 43. Qd5 {[%clk 0:00:17]}  Rf6 {[%clk 0:00:05]} 44. Qxd4 {[%clk 0:00:13]}  Re6 {[%clk 0:00:03]} 45. Be4+ {[%clk 0:00:13]}  Kf7 {[%clk 0:00:02]} 46. Bd5 {[%clk 0:00:11]}  Qf1 {[%clk 0:00:02]} 47. Qf2+ {[%clk 0:00:09]} 1-0


[Site "https://www.chess.com"]

[Event "Titled Tuesday Blitz January 25 2022"]
[White "Gaehwiler, Gabriel"]
[Black "Agasarov, Benik"]
[WhiteFideId "1314530"]
[BlackFideId "13314823"]
[WhiteElo "2383"]
[BlackElo "2588"]
[Result "1-0"]
[Round "10"]
[TimeControl "180+1"]
[Date "2022.01.26"]
[WhiteClock "0:00:05"]
[BlackClock "0:00:01"]

1. d4 {[%clk 0:03:00]}  d5 {[%clk 0:02:58]} 2. c4 {[%clk 0:03:00]}  dxc4 {[%clk 0:02:57]} 3. e3 {[%clk 0:02:59]}  Nf6 {[%clk 0:02:54]} 4. Bxc4 {[%clk 0:02:58]}  e6 {[%clk 0:02:55]} 5. Nf3 {[%clk 0:02:58]}  a6 {[%clk 0:02:55]} 6. a4 {[%clk 0:02:50]}  c5 {[%clk 0:02:52]} 7. O-O {[%clk 0:02:49]}  Nc6 {[%clk 0:02:52]} 8. Nc3 {[%clk 0:02:49]}  cxd4 {[%clk 0:02:51]} 9. exd4 {[%clk 0:02:50]}  Bb4 {[%clk 0:02:50]} 10. Bg5 {[%clk 0:02:41]}  h6 {[%clk 0:02:37]} 11. Bh4 {[%clk 0:02:40]}  O-O {[%clk 0:02:29]} 12. Bd3 {[%clk 0:02:25]}  Be7 {[%clk 0:02:21]} 13. Re1 {[%clk 0:02:21]}  Nb4 {[%clk 0:02:21]} 14. Bb1 {[%clk 0:02:17]}  Nbd5 {[%clk 0:02:17]} 15. Bd3 {[%clk 0:02:15]}  Bd7 {[%clk 0:02:12]} 16. Rc1 {[%clk 0:02:12]}  Rc8 {[%clk 0:02:10]} 17. Ne5 {[%clk 0:02:09]}  Bc6 {[%clk 0:01:58]} 18. Bb1 {[%clk 0:01:56]}  Nxc3 {[%clk 0:01:52]} 19. bxc3 {[%clk 0:01:55]}  Qd5 {[%clk 0:01:50]} 20. f3 {[%clk 0:01:47]}  Rfd8 {[%clk 0:01:34]} 21. Qd3 {[%clk 0:01:41]}  Kf8 {[%clk 0:01:24]} 22. Bc2 {[%clk 0:01:34]}  Be8 {[%clk 0:01:17]} 23. Bf2 {[%clk 0:01:25]}  b5 {[%clk 0:01:11]} 24. Rb1 {[%clk 0:01:15]}  bxa4 {[%clk 0:01:02]} 25. c4 {[%clk 0:01:08]}  Qa5 {[%clk 0:01:02]} 26. Ra1 {[%clk 0:00:59]}  a3 {[%clk 0:00:59]} 27. Red1 {[%clk 0:00:56]}  Qc7 {[%clk 0:00:51]} 28. Bb3 {[%clk 0:00:51]}  a5 {[%clk 0:00:50]} 29. Qe2 {[%clk 0:00:48]}  a4 {[%clk 0:00:50]} 30. Ba2 {[%clk 0:00:48]}  Nd7 {[%clk 0:00:47]} 31. Nd3 {[%clk 0:00:46]}  Nb6 {[%clk 0:00:45]} 32. Rac1 {[%clk 0:00:45]}  Kg8 {[%clk 0:00:35]} 33. Rc2 {[%clk 0:00:43]}  Bf6 {[%clk 0:00:33]} 34. Nb4 {[%clk 0:00:27]}  Qe7 {[%clk 0:00:27]} 35. c5 {[%clk 0:00:27]}  Nd5 {[%clk 0:00:19]} 36. Bxd5 {[%clk 0:00:27]}  exd5 {[%clk 0:00:18]} 37. Qxe7 {[%clk 0:00:27]}  Bxe7 {[%clk 0:00:19]} 38. Ra1 {[%clk 0:00:26]}  Bb5 {[%clk 0:00:18]} 39. Rxa3 {[%clk 0:00:25]}  Bf6 {[%clk 0:00:17]} 40. g4 {[%clk 0:00:21]}  Rb8 {[%clk 0:00:14]} 41. Rd2 {[%clk 0:00:17]}  Bg5 {[%clk 0:00:12]} 42. Rc2 {[%clk 0:00:16]}  Be8 {[%clk 0:00:11]} 43. Nd3 {[%clk 0:00:13]}  Rb1+ {[%clk 0:00:11]} 44. Kg2 {[%clk 0:00:13]}  Bb5 {[%clk 0:00:09]} 45. h4 {[%clk 0:00:12]}  Bf6 {[%clk 0:00:07]} 46. Ne5 {[%clk 0:00:12]}  Bxe5 {[%clk 0:00:06]} 47. dxe5 {[%clk 0:00:12]}  d4 {[%clk 0:00:07]} 48. c6 {[%clk 0:00:12]}  d3 {[%clk 0:00:07]} 49. Rd2 {[%clk 0:00:12]}  Bxc6 {[%clk 0:00:07]} 50. Rdxd3 {[%clk 0:00:13]}  Rxd3 {[%clk 0:00:07]} 51. Rxd3 {[%clk 0:00:14]}  Rb3 {[%clk 0:00:07]} 52. Rxb3 {[%clk 0:00:12]}  axb3 {[%clk 0:00:08]} 53. Bd4 {[%clk 0:00:12]}  Kf8 {[%clk 0:00:09]} 54. Kg3 {[%clk 0:00:11]}  Ke7 {[%clk 0:00:09]} 55. f4 {[%clk 0:00:11]}  Ke6 {[%clk 0:00:09]} 56. f5+ {[%clk 0:00:11]}  Kd5 {[%clk 0:00:10]} 57. Bb2 {[%clk 0:00:12]}  Kc4 {[%clk 0:00:10]} 58. Kf4 {[%clk 0:00:09]}  Kd3 {[%clk 0:00:10]} 59. e6 {[%clk 0:00:09]}  fxe6 {[%clk 0:00:10]} 60. fxe6 {[%clk 0:00:10]}  g6 {[%clk 0:00:10]} 61. Ke5 {[%clk 0:00:06]}  Kc2 {[%clk 0:00:10]} 62. Bd4 {[%clk 0:00:06]}  b2 {[%clk 0:00:11]} 63. Bxb2 {[%clk 0:00:06]}  Kxb2 {[%clk 0:00:11]} 64. g5 {[%clk 0:00:03]}  hxg5 {[%clk 0:00:06]} 65. hxg5 {[%clk 0:00:04]}  Kc2 {[%clk 0:00:06]} 66. Kf6 {[%clk 0:00:04]}  Be8 {[%clk 0:00:07]} 67. Ke7 {[%clk 0:00:04]}  Bb5 {[%clk 0:00:06]} 68. Kf7 {[%clk 0:00:04]}  Bc4 {[%clk 0:00:04]} 69. Kf6 {[%clk 0:00:04]}  Bd3 {[%clk 0:00:03]} 70. e7 {[%clk 0:00:04]}  Bb5 {[%clk 0:00:04]} 71. Kxg6 {[%clk 0:00:04]}  Kd3 {[%clk 0:00:04]} 72. Kf7 {[%clk 0:00:05]}  Ke4 {[%clk 0:00:04]} 73. g6 {[%clk 0:00:05]}  Bc4+ {[%clk 0:00:03]} 74. Kf8 {[%clk 0:00:05]}  Bb5 {[%clk 0:00:03]} 75. g7 {[%clk 0:00:06]}  Kf5 {[%clk 0:00:04]} 76. g8=Q {[%clk 0:00:06]}  Bc4 {[%clk 0:00:01]} 77. Qxc4 {[%clk 0:00:05]} 1-0


[Site "https://www.chess.com"]

[Event "Titled Tuesday Blitz January 25 2022"]
[White "Garriga Cazorla, Pere"]
[Black "Costachi, Mihnea"]
[WhiteFideId "32011601"]
[BlackFideId "1217518"]
[WhiteElo "2458"]
[BlackElo "2464"]
[Result "0-1"]
[Round "10"]
[TimeControl "180+1"]
[Date "2022.01.26"]
[WhiteClock "0:02:17"]
[BlackClock "0:02:00"]

1. d4 {[%clk 0:03:00]}  Nf6 {[%clk 0:02:59]} 2. c4 {[%clk 0:03:00]}  g6 {[%clk 0:02:59]} 3. Nc3 {[%clk 0:03:00]}  d5 {[%clk 0:02:59]} 4. cxd5 {[%clk 0:03:01]}  Nxd5 {[%clk 0:02:59]} 5. e4 {[%clk 0:03:01]}  Nxc3 {[%clk 0:03:00]} 6. bxc3 {[%clk 0:03:02]}  c5 {[%clk 0:03:01]} 7. Bb5+ {[%clk 0:03:02]}  Bd7 {[%clk 0:02:59]} 8. Be2 {[%clk 0:02:58]}  Bg7 {[%clk 0:02:58]} 9. Be3 {[%clk 0:02:56]}  cxd4 {[%clk 0:02:57]} 10. cxd4 {[%clk 0:02:57]}  Qa5+ {[%clk 0:02:57]} 11. Qd2 {[%clk 0:02:56]}  Qxd2+ {[%clk 0:02:58]} 12. Kxd2 {[%clk 0:02:57]}  Nc6 {[%clk 0:02:58]} 13. Nf3 {[%clk 0:02:57]}  Bg4 {[%clk 0:02:59]} 14. Bb5 {[%clk 0:02:57]}  O-O {[%clk 0:02:53]} 15. Bxc6 {[%clk 0:02:56]}  bxc6 {[%clk 0:02:54]} 16. Rac1 {[%clk 0:02:55]}  Rfd8 {[%clk 0:02:51]} 17. e5 {[%clk 0:02:44]}  Bxf3 {[%clk 0:02:48]} 18. gxf3 {[%clk 0:02:44]}  Bxe5 {[%clk 0:02:49]} 19. Kd3 {[%clk 0:02:42]}  Bxd4 {[%clk 0:02:45]} 20. Bxd4 {[%clk 0:02:40]}  e5 {[%clk 0:02:46]} 21. Rc4 {[%clk 0:02:39]}  exd4 {[%clk 0:02:45]} 22. Rxd4 {[%clk 0:02:40]}  Rxd4+ {[%clk 0:02:45]} 23. Kxd4 {[%clk 0:02:41]}  Rd8+ {[%clk 0:02:44]} 24. Kc5 {[%clk 0:02:41]}  Rd2 {[%clk 0:02:45]} 25. Ra1 {[%clk 0:02:41]}  Rxf2 {[%clk 0:02:41]} 26. Kxc6 {[%clk 0:02:42]}  Rxf3 {[%clk 0:02:39]} 27. a4 {[%clk 0:02:39]}  a5 {[%clk 0:02:36]} 28. Rb1 {[%clk 0:02:38]}  Rf4 {[%clk 0:02:33]} 29. Kb5 {[%clk 0:02:36]}  Rf5+ {[%clk 0:02:33]} 30. Kb6 {[%clk 0:02:37]}  h5 {[%clk 0:02:30]} 31. Ka6 {[%clk 0:02:28]}  h4 {[%clk 0:02:28]} 32. Rb5 {[%clk 0:02:29]}  Rf2 {[%clk 0:02:25]} 33. h3 {[%clk 0:02:24]}  Rf3 {[%clk 0:02:24]} 34. Kxa5 {[%clk 0:02:24]}  Rxh3 {[%clk 0:02:24]} 35. Kb6 {[%clk 0:02:25]}  Ra3 {[%clk 0:02:22]} 36. a5 {[%clk 0:02:26]}  h3 {[%clk 0:02:22]} 37. Rb2 {[%clk 0:02:20]}  g5 {[%clk 0:02:20]} 38. a6 {[%clk 0:02:21]}  g4 {[%clk 0:02:19]} 39. a7 {[%clk 0:02:21]}  g3 {[%clk 0:02:10]} 40. Rb5 {[%clk 0:02:21]}  g2 {[%clk 0:02:02]} 41. Rg5+ {[%clk 0:02:18]}  Kf8 {[%clk 0:02:01]} 42. Ra5 {[%clk 0:02:17]}  g1=Q+ {[%clk 0:02:00]} 0-1


[Site "https://www.chess.com"]

[Event "Titled Tuesday Blitz January 25 2022"]
[White "Gelman, Alexander"]
[Black "Pajeken, Jakob Leon"]
[WhiteFideId "4118316"]
[BlackFideId "12942839"]
[WhiteElo "2375"]
[BlackElo "2351"]
[Result "1-0"]
[Round "10"]
[TimeControl "180+1"]
[Date "2022.01.26"]
[WhiteClock "0:00:40"]
[BlackClock "0:00:17"]

1. d4 {[%clk 0:03:00]}  d5 {[%clk 0:02:58]} 2. Nc3 {[%clk 0:03:01]}  Nf6 {[%clk 0:02:58]} 3. Bf4 {[%clk 0:03:01]}  c5 {[%clk 0:02:54]} 4. e3 {[%clk 0:03:02]}  cxd4 {[%clk 0:02:55]} 5. exd4 {[%clk 0:03:02]}  a6 {[%clk 0:02:55]} 6. Nf3 {[%clk 0:03:02]}  Nc6 {[%clk 0:02:54]} 7. Ne5 {[%clk 0:03:03]}  e6 {[%clk 0:02:52]} 8. Nxc6 {[%clk 0:02:54]}  bxc6 {[%clk 0:02:53]} 9. Qf3 {[%clk 0:02:54]}  Bd6 {[%clk 0:02:52]} 10. O-O-O {[%clk 0:02:45]}  Qc7 {[%clk 0:02:48]} 11. Bg5 {[%clk 0:02:42]}  Be7 {[%clk 0:02:42]} 12. Bd3 {[%clk 0:02:32]}  h6 {[%clk 0:02:40]} 13. Bf4 {[%clk 0:02:31]}  Bd6 {[%clk 0:02:40]} 14. Bxd6 {[%clk 0:02:29]}  Qxd6 {[%clk 0:02:41]} 15. Na4 {[%clk 0:02:29]}  Qb4 {[%clk 0:02:33]} 16. Nc3 {[%clk 0:02:17]}  Qxd4 {[%clk 0:02:29]} 17. Qg3 {[%clk 0:02:12]}  Qg4 {[%clk 0:02:26]} 18. Qd6 {[%clk 0:02:12]}  Bd7 {[%clk 0:02:20]} 19. Rhe1 {[%clk 0:02:06]}  Nh5 {[%clk 0:02:13]} 20. g3 {[%clk 0:02:03]}  Qg5+ {[%clk 0:02:13]} 21. f4 {[%clk 0:02:03]}  Qe7 {[%clk 0:02:12]} 22. Qe5 {[%clk 0:01:59]}  Nf6 {[%clk 0:02:09]} 23. g4 {[%clk 0:01:57]}  O-O {[%clk 0:01:51]} 24. g5 {[%clk 0:01:56]}  Ng4 {[%clk 0:01:46]} 25. Qe2 {[%clk 0:01:54]}  d4 {[%clk 0:01:30]} 26. Qe4 {[%clk 0:01:36]}  f5 {[%clk 0:01:15]} 27. Qxd4 {[%clk 0:01:34]}  hxg5 {[%clk 0:01:03]} 28. h3 {[%clk 0:01:33]}  Nh6 {[%clk 0:01:02]} 29. fxg5 {[%clk 0:01:30]}  Qxg5+ {[%clk 0:01:01]} 30. Kb1 {[%clk 0:01:31]}  Rf7 {[%clk 0:01:00]} 31. Bc4 {[%clk 0:01:28]}  Re8 {[%clk 0:00:52]} 32. Bxa6 {[%clk 0:01:19]}  f4 {[%clk 0:00:47]} 33. Rg1 {[%clk 0:01:13]}  Qh5 {[%clk 0:00:42]} 34. Ne4 {[%clk 0:01:04]}  e5 {[%clk 0:00:38]} 35. Qc5 {[%clk 0:00:51]}  f3 {[%clk 0:00:30]} 36. Bc4 {[%clk 0:00:48]}  Be6 {[%clk 0:00:27]} 37. Qxc6 {[%clk 0:00:47]}  Rfe7 {[%clk 0:00:17]} 38. Nf6+ {[%clk 0:00:40]} 1-0


[Site "https://www.chess.com"]

[Event "Titled Tuesday Blitz January 25 2022"]
[White "Golubka, Petro"]
[Black "Vasquez Schroeder, Rodrigo"]
[WhiteFideId "14114224"]
[BlackFideId "3400042"]
[WhiteElo "2392"]
[BlackElo "2568"]
[Result "0-1"]
[Round "10"]
[TimeControl "180+1"]
[Date "2022.01.26"]
[WhiteClock "0:01:27"]
[BlackClock "0:01:08"]

1. e4 {[%clk 0:02:41]}  c5 {[%clk 0:02:59]} 2. Nf3 {[%clk 0:02:40]}  d6 {[%clk 0:02:58]} 3. c3 {[%clk 0:02:36]}  Nf6 {[%clk 0:02:57]} 4. Bd3 {[%clk 0:02:35]}  Bg4 {[%clk 0:02:55]} 5. h3 {[%clk 0:02:34]}  Bh5 {[%clk 0:02:48]} 6. O-O {[%clk 0:02:33]}  Nc6 {[%clk 0:02:48]} 7. Re1 {[%clk 0:02:33]}  e6 {[%clk 0:02:47]} 8. Bc2 {[%clk 0:02:33]}  d5 {[%clk 0:02:46]} 9. e5 {[%clk 0:02:31]}  Nd7 {[%clk 0:02:46]} 10. d4 {[%clk 0:02:31]}  Bxf3 {[%clk 0:02:44]} 11. Qxf3 {[%clk 0:02:30]}  cxd4 {[%clk 0:02:44]} 12. Bf4 {[%clk 0:02:31]}  Be7 {[%clk 0:02:39]} 13. Qg3 {[%clk 0:02:27]}  g6 {[%clk 0:02:37]} 14. Nd2 {[%clk 0:02:26]}  dxc3 {[%clk 0:02:33]} 15. bxc3 {[%clk 0:02:27]}  Bh4 {[%clk 0:02:32]} 16. Qe3 {[%clk 0:02:25]}  Qb6 {[%clk 0:02:29]} 17. Qe2 {[%clk 0:02:23]}  O-O {[%clk 0:02:23]} 18. Rab1 {[%clk 0:02:21]}  Qc7 {[%clk 0:02:21]} 19. Nf3 {[%clk 0:02:21]}  Be7 {[%clk 0:02:21]} 20. h4 {[%clk 0:02:21]}  Nc5 {[%clk 0:02:16]} 21. h5 {[%clk 0:02:19]}  Rad8 {[%clk 0:02:03]} 22. Bh6 {[%clk 0:02:13]}  Rfe8 {[%clk 0:02:02]} 23. Ng5 {[%clk 0:02:09]}  Bf8 {[%clk 0:01:47]} 24. Bxf8 {[%clk 0:01:57]}  Rxf8 {[%clk 0:01:48]} 25. Qg4 {[%clk 0:01:54]}  Nxe5 {[%clk 0:01:43]} 26. Qg3 {[%clk 0:01:54]}  f6 {[%clk 0:01:43]} 27. Nh3 {[%clk 0:01:45]}  g5 {[%clk 0:01:37]} 28. Nxg5 {[%clk 0:01:42]}  Kh8 {[%clk 0:01:37]} 29. Nxh7 {[%clk 0:01:40]}  Rg8 {[%clk 0:01:36]} 30. Qf4 {[%clk 0:01:37]}  Qg7 {[%clk 0:01:30]} 31. g3 {[%clk 0:01:34]}  Ncd3 {[%clk 0:01:23]} 32. Qxf6 {[%clk 0:01:31]}  Nxe1 {[%clk 0:01:16]} 33. Rxe1 {[%clk 0:01:27]}  Qxf6 {[%clk 0:01:15]} 34. Nxf6 {[%clk 0:01:26]}  Nf3+ {[%clk 0:01:16]} 35. Kf1 {[%clk 0:01:27]}  Nxe1 {[%clk 0:01:16]} 36. Kxe1 {[%clk 0:01:28]}  Rgf8 {[%clk 0:01:09]} 37. Ng4 {[%clk 0:01:28]}  d4 {[%clk 0:01:08]} 38. c4 {[%clk 0:01:26]}  d3 {[%clk 0:01:08]} 39. Bd1 {[%clk 0:01:26]}  Rd4 {[%clk 0:01:07]} 40. Ne5 {[%clk 0:01:27]}  Re4+ {[%clk 0:01:08]} 0-1


[Site "https://www.chess.com"]